bitfinex/quotes_BTCUSD_20240915
["timestamp","ask_amount","ask_price","bid_price","bid_amount"]
[1726417382018,0.02605458,60232.0,60231.0,0.498081]
[1726417383567,0.02605458,60232.0,60226.0,0.332079]
[1726417383801,0.166031,60230.0,60223.0,0.332098]
[1726417384063,0.02605458,60232.0,60223.0,0.332098]
[1726417384301,0.02605458,60232.0,60229.0,0.166032]
[1726417384547,0.001646,60231.0,60229.0,0.166032]
[1726417384795,0.333701,60231.0,60224.0,0.166044]
[1726417385038,0.332114,60221.0,60215.0,0.000823]
[1726417385281,0.2991,60229.0,60215.0,0.000823]
[1726417385282,0.1,60222.0,60215.0,0.000823]
[1726417385516,0.166059,60220.0,60215.0,0.000823]
[1726417385777,0.332089,60225.0,60215.0,0.000823]
[1726417385778,0.2991,60229.0,60215.0,0.000823]
[1726417386007,0.598205,60216.0,60215.0,0.000823]
[1726417386488,0.930342,60216.0,60215.0,0.000823]
[1726417386794,0.266068,60216.0,60215.0,0.000823]
[1726417387040,0.598205,60216.0,60215.0,0.000823]
[1726417388053,0.166058,60220.0,60215.0,0.166892]
[1726417388285,0.02606183,60218.0,60215.0,0.166892]
[1726417388565,0.02606183,60218.0,60217.0,0.166066]
[1726417388809,0.02606183,60218.0,60217.0,0.83033]
[1726417389076,0.02606183,60218.0,60217.0,0.498198]
[1726417389314,0.02606183,60218.0,60217.0,0.83033]
[1726417389804,0.02606183,60218.0,60217.0,1.162462]
[1726417390546,0.001646,60231.0,60229.0,0.166031]
[1726417390828,0.001646,60231.0,60215.0,0.57442498]
[1726417390829,0.001646,60231.0,60230.0,0.76069198]
[1726417391084,0.02770152,60231.0,60220.0,0.03321]
[1726417391328,0.02770152,60231.0,60229.0,0.166032]
[1726417391559,0.02770152,60231.0,60230.0,0.16603]
[1726417392533,0.02770152,60231.0,60230.0,0.49809]
[1726417393000,0.02770152,60231.0,60230.0,0.83015]
[1726417393518,0.02770152,60231.0,60230.0,0.16603]
[1726417393783,0.02770152,60231.0,60230.0,0.49809]
[1726417394789,0.02770152,60231.0,60230.0,0.83015]
[1726417395309,0.001646,60231.0,60230.0,1.16221]
[1726417396086,0.001646,60231.0,60230.0,1.83838]
[1726417396649,0.01733512,60256.0,60251.0,0.331944]
[1726417396870,0.60089126,60260.0,60257.0,0.165955]
[1726417396871,0.43494326,60260.0,60257.0,0.165955]
[1726417397168,0.00863158,60255.0,60254.0,0.165962]
[1726417397354,0.008625,60259.0,60255.0,0.165959]
[1726417397605,0.00860546,60255.0,60249.0,0.331954]
[1726417397891,0.1859,60260.0,60236.0,0.03321]
[1726417398107,0.1859,60260.0,60234.0,0.03]
[1726417398108,0.165974,60251.0,60245.0,0.165987]
[1726417398353,0.331913,60257.0,60245.0,0.331973]
[1726417398588,0.00870892,60250.0,60247.0,0.165982]
[1726417398810,0.331928,60254.0,60245.0,0.165987]
[1726417399031,0.165974,60251.0,60246.0,0.165985]
[1726417399295,0.165975,60250.0,60245.0,0.165988]
[1726417399513,0.00870544,60250.0,60248.0,0.16598]
[1726417399737,0.00870544,60250.0,60232.0,1.02919021]
[1726417399738,0.00870544,60250.0,60249.0,0.497932]
[1726417399958,0.02604562,60252.0,60251.0,0.165972]
[1726417400397,0.02604562,60252.0,60249.0,0.165976]
[1726417400820,0.00865971,60251.0,60250.0,0.165974]
[1726417401963,0.02604562,60252.0,60249.0,0.165975]
[1726417402195,0.00865971,60251.0,60249.0,0.165975]
[1726417402418,0.00865971,60251.0,60250.0,0.165975]
[1726417402870,0.00865971,60251.0,60250.0,0.497925]
[1726417403088,0.00865971,60251.0,60250.0,0.165975]
[1726417403306,0.02604562,60252.0,60249.0,0.331955]
[1726417403507,0.02604562,60252.0,60250.0,0.165974]
[1726417403791,0.02604562,60252.0,60251.0,0.165972]
[1726417404257,0.02604562,60252.0,60249.0,0.165975]
[1726417404660,0.02604562,60252.0,60250.0,0.165974]
[1726417405107,0.165964,60254.0,60250.0,0.165974]
[1726417405325,0.165964,60254.0,60248.0,0.165979]
[1726417405599,0.165964,60254.0,60249.0,0.165977]
[1726417406033,0.165967,60253.0,60249.0,0.165977]
[1726417406674,0.165965,60254.0,60249.0,0.165977]
[1726417407150,0.829917,60247.0,60230.0,0.64296]
[1726417407379,0.39260198,60252.0,60223.0,0.03]
[1726417407380,0.1,60252.0,60239.0,0.166004]
[1726417407599,0.165986,60246.0,60238.0,0.166007]
[1726417407825,0.165997,60242.0,60233.0,0.332043]
[1726417408041,0.331982,60245.0,60234.0,0.166018]
[1726417408257,0.166001,60241.0,60234.0,0.166018]
[1726417408471,0.166001,60241.0,60226.0,0.26260198]
[1726417408472,0.166005,60240.0,60233.0,0.166021]
[1726417408705,0.166006,60239.0,60233.0,0.166021]
[1726417408918,0.166003,60240.0,60233.0,0.166021]
[1726417409115,0.166003,60240.0,60234.0,0.166018]
[1726417409588,0.1920505,60241.0,60235.0,0.166015]
[1726417409798,0.0260495,60241.0,60240.0,0.166002]
[1726417410238,0.0260495,60241.0,60238.0,0.166006]
[1726417410459,0.0260495,60241.0,60236.0,0.332027]
[1726417410460,0.0260495,60241.0,60239.0,0.166002]
[1726417410678,0.00827816,60240.0,60239.0,0.166002]
[1726417410892,0.00827816,60240.0,60237.0,0.166009]
[1726417411107,0.17428116,60240.0,60235.0,0.166014]
[1726417411536,0.166008,60238.0,60233.0,0.166021]
[1726417411754,0.17428116,60240.0,60234.0,0.166017]
[1726417412018,0.00826906,60237.0,60232.0,0.26260198]
[1726417412236,0.0260495,60241.0,60232.0,0.26260198]
[1726417412454,0.0260495,60241.0,60240.0,0.76060898]
[1726417413775,0.0260495,60241.0,60240.0,1.09261398]
[1726417415068,0.1,60250.0,60246.0,0.165985]
[1726417415483,0.1,60250.0,60247.0,0.165982]
[1726417415614,0.165969,60252.0,60247.0,0.165982]
[1726417415825,0.1,60251.0,60247.0,0.165982]
[1726417416848,0.1,60251.0,60248.0,0.165979]
[1726417417069,0.001646,60254.0,60249.0,0.165976]
[1726417417263,0.16597,60252.0,60247.0,0.165982]
[1726417417472,0.001646,60254.0,60250.0,0.165975]
[1726417417473,0.16761,60254.0,60250.0,0.165975]
[1726417417828,0.16761,60254.0,60245.0,0.26260198]
[1726417417829,0.001646,60254.0,60251.0,0.165971]
[1726417418048,0.1936556,60254.0,60250.0,0.165973]
[1726417418491,0.1936556,60254.0,60248.0,0.33196]
[1726417418492,0.1936556,60254.0,60248.0,0.497939]
[1726417418914,0.165967,60253.0,60248.0,0.497939]
[1726417419361,0.1936566,60254.0,60249.0,0.165975]
[1726417419811,0.165967,60253.0,60249.0,0.165975]
[1726417420254,0.0276916,60254.0,60245.0,0.26260198]
[1726417420473,0.0276916,60254.0,60253.0,0.497899]
[1726417420726,0.0276916,60254.0,60253.0,0.829832]
[1726417421225,0.0276916,60254.0,60253.0,1.161765]
[1726417421451,0.0276916,60254.0,60253.0,0.829832]
[1726417424459,0.0276916,60254.0,60253.0,1.195055]
[1726417424763,0.3105,60274.0,60253.0,0.365223]
[1726417424899,0.3105,60274.0,60264.0,0.42853698]
[1726417425119,0.16593,60267.0,60262.0,0.165941]
[1726417425372,0.0530195,60273.0,60257.0,0.33191]
[1726417425569,0.165937,60264.0,60259.0,0.165948]
[1726417425975,0.00843201,60263.0,60259.0,0.165948]
[1726417426178,0.00843201,60263.0,60260.0,0.165947]
[1726417426593,0.165935,60265.0,60260.0,0.165947]
[1726417426783,0.0084255,60262.0,60260.0,0.165947]
[1726417427001,0.331842,60270.0,60254.0,0.26260198]
[1726417427213,0.1886,60259.0,60246.0,0.331972]
[1726417427458,0.165967,60253.0,60248.0,0.16598]
[1726417427670,0.331928,60254.0,60244.0,0.365272]
[1726417427933,0.1744129,60252.0,60247.0,0.165983]
[1726417428150,0.331928,60254.0,60248.0,0.165979]
[1726417428151,0.00844941,60253.0,60248.0,0.165979]
[1726417428366,0.00843217,60251.0,60248.0,0.165979]
[1726417428589,0.00843869,60252.0,60248.0,0.165979]
[1726417428804,0.00842566,60250.0,60248.0,0.165979]
[1726417429024,0.165967,60253.0,60248.0,0.165979]
[1726417429274,0.165964,60254.0,60249.0,0.165977]
[1726417429476,0.00843869,60252.0,60249.0,0.165977]
[1726417429689,0.33194,60252.0,60243.0,0.165992]
[1726417429932,0.33194,60252.0,60244.0,0.165991]
[1726417429933,0.00843217,60251.0,60244.0,0.165991]
[1726417430187,0.165987,60246.0,60241.0,0.165998]
[1726417430423,0.00843217,60251.0,60239.0,0.166003]
[1726417430424,0.33196,60249.0,60239.0,0.166003]
[1726417430644,0.33196,60249.0,60241.0,0.165997]
[1726417430645,0.00829524,60245.0,60241.0,0.165997]
[1726417430901,0.33196,60249.0,60242.0,0.165996]
[1726417431141,0.00828531,60244.0,60242.0,0.165996]
[1726417431389,0.1,60249.0,60232.0,0.29589198]
[1726417431652,0.165999,60241.0,60236.0,0.166013]
[1726417431907,0.02604715,60248.0,60232.0,0.29589198]
[1726417431908,0.166004,60240.0,60235.0,0.166016]
[1726417432151,0.166003,60240.0,60234.0,0.166017]
[1726417432390,0.00830469,60239.0,60235.0,0.166015]
[1726417432626,0.00830469,60239.0,60236.0,0.166013]
[1726417433338,0.00830469,60239.0,60235.0,0.332031]
[1726417433578,0.165987,60246.0,60238.0,0.166006]
[1726417433579,0.165993,60244.0,60238.0,0.166006]
[1726417433801,0.165998,60242.0,60236.0,0.166012]
[1726417434032,0.165998,60242.0,60237.0,0.16601]
[1726417434732,0.165992,60244.0,60238.0,0.166008]
[1726417434976,0.331979,60245.0,60236.0,0.332027]
[1726417435193,0.165997,60242.0,60237.0,0.166009]
[1726417435843,0.331974,60246.0,60237.0,0.332018]
[1726417436049,0.165987,60246.0,60239.0,0.332009]
[1726417436262,0.1,60249.0,60239.0,0.332009]
[1726417436478,0.0025679,60252.0,60245.0,0.165986]
[1726417436479,0.265973,60251.0,60245.0,0.165986]
[1726417436695,0.1,60249.0,60245.0,0.165986]
[1726417436914,0.1,60249.0,60238.0,0.26260198]
[1726417437148,0.1,60249.0,60244.0,0.165989]
[1726417437394,0.1,60249.0,60238.0,0.26260198]
[1726417437616,0.1,60249.0,60248.0,0.76054298]
[1726417437846,0.0025679,60252.0,60248.0,0.76054298]
[1726417437847,0.1685379,60252.0,60248.0,0.26260198]
[1726417438069,0.02604683,60250.0,60245.0,0.331975]
[1726417438295,0.02604683,60250.0,60247.0,0.165982]
[1726417438535,0.02604683,60250.0,60243.0,0.59458598]
[1726417438762,0.02604683,60250.0,60247.0,0.165982]
[1726417439435,0.02604683,60250.0,60243.0,0.59458598]
[1726417439436,0.02604683,60250.0,60245.0,0.165986]
[1726417439675,0.02604683,60250.0,60246.0,0.165985]
[1726417439904,0.02604683,60250.0,60244.0,0.331982]
[1726417440977,0.02604683,60250.0,60236.0,0.03329]
[1726417440978,0.3147,60249.0,60236.0,0.03329]
[1726417441207,0.1,60245.0,60232.0,0.000823]
[1726417441435,0.332007,60240.0,60232.0,0.000823]
[1726417441670,0.04949375,60244.0,60232.0,0.000823]
[1726417441671,0.331996,60242.0,60232.0,0.000823]
[1726417441909,0.02605158,60240.0,60233.0,0.166019]
[1726417442144,0.166012,60237.0,60232.0,0.000823]
[1726417442594,0.332011,60239.0,60232.0,0.000823]
[1726417442815,0.332017,60238.0,60232.0,0.000823]
[1726417443031,0.166019,60234.0,60232.0,0.000823]
[1726417443533,0.166021,60233.0,60232.0,0.000823]
[1726417444018,0.166017,60235.0,60232.0,0.000823]
[1726417444251,0.166021,60233.0,60232.0,0.000823]
[1726417445430,0.354221,60233.0,60232.0,0.000823]
[1726417445686,1.76505,60233.0,60232.0,0.000823]
[1726417446127,0.03,60231.0,60212.0,0.000823]
[1726417446352,0.166068,60216.0,60212.0,0.000823]
[1726417446570,0.03,60231.0,60212.0,0.000823]
[1726417446571,0.5052,60231.0,60212.0,0.000823]
[1726417446793,0.498205,60216.0,60212.0,0.000823]
[1726417447040,0.332119,60220.0,60212.0,0.000823]
[1726417447041,0.166065,60218.0,60213.0,0.26260198]
[1726417447296,0.332119,60220.0,60213.0,0.26260198]
[1726417447508,0.166068,60216.0,60213.0,0.26260198]
[1726417448677,0.166066,60217.0,60213.0,0.26260198]
[1726417448906,0.166068,60216.0,60213.0,0.26260198]
[1726417449771,0.166064,60218.0,60213.0,0.26260198]
[1726417450016,0.332116,60220.0,60213.0,0.26260198]
[1726417450017,0.166066,60217.0,60213.0,0.26260198]
[1726417450548,0.02605914,60221.0,60213.0,0.26260198]
[1726417450990,0.02605914,60221.0,60216.0,0.332135]
[1726417451218,0.19211414,60221.0,60216.0,0.166067]
[1726417451430,0.19211614,60221.0,60216.0,0.166068]
[1726417451916,0.02605914,60221.0,60213.0,0.59474998]
[1726417452151,0.02605914,60221.0,60218.0,0.166063]
[1726417452375,0.02605914,60221.0,60217.0,0.332129]
[1726417452586,0.02605914,60221.0,60219.0,0.16606]
[1726417452809,0.02605914,60221.0,60218.0,0.332126]
[1726417453021,0.02605914,60221.0,60217.0,0.332132]
[1726417453225,0.02605914,60221.0,60220.0,0.166057]
[1726417453434,0.02605914,60221.0,60218.0,0.166062]
[1726417453874,0.00885624,60220.0,60216.0,0.166067]
[1726417454108,0.00885624,60220.0,60217.0,0.166065]
[1726417454765,0.00885624,60220.0,60215.0,0.166893]
[1726417455014,0.166061,60219.0,60215.0,0.000823]
[1726417455233,0.00885624,60220.0,60217.0,0.166063]
[1726417455480,0.0088622,60218.0,60217.0,0.166063]
[1726417455695,0.432053,60232.0,60215.0,0.332961]
[1726417455913,0.166044,60225.0,60220.0,0.166057]
[1726417456341,0.00885624,60224.0,60220.0,0.332115]
[1726417456558,0.00885624,60224.0,60220.0,0.166056]
[1726417456799,0.166044,60225.0,60220.0,0.166056]
[1726417457010,0.00885624,60223.0,60220.0,0.332114]
[1726417457225,0.1,60229.0,60220.0,0.332114]
[1726417457440,0.16605,60223.0,60219.0,0.19093661]
[1726417457656,0.16605,60223.0,60218.0,0.16606]
[1726417457899,0.16605,60223.0,60215.0,0.52389961]
[1726417457900,0.16605,60223.0,60216.0,0.332136]
[1726417458147,0.16605,60223.0,60218.0,0.16606]
[1726417458148,0.00885624,60222.0,60218.0,0.16606]
[1726417458804,0.00885624,60222.0,60219.0,0.166059]
[1726417459284,0.166047,60224.0,60219.0,0.166059]
[1726417459527,0.00885624,60221.0,60220.0,0.498172]
[1726417459748,0.02605688,60225.0,60224.0,0.166046]
[1726417460199,0.02605688,60225.0,60215.0,0.000823]
[1726417460200,0.166053,60222.0,60217.0,0.000823]
[1726417460450,0.332095,60224.0,60217.0,0.166887]
[1726417460697,0.16605,60223.0,60218.0,0.166063]
[1726417460918,0.332081,60227.0,60219.0,0.166059]
[1726417460919,0.332084,60226.0,60219.0,0.166059]
[1726417461140,0.332081,60227.0,60219.0,0.166059]
[1726417461141,0.166047,60224.0,60219.0,0.166059]
[1726417462209,0.166055,60221.0,60217.0,0.000823]
[1726417462414,0.166051,60223.0,60217.0,0.166886]
[1726417462850,0.166051,60223.0,60218.0,0.166062]
[1726417463326,0.166051,60223.0,60219.0,0.16606]
[1726417463535,0.166051,60223.0,60217.0,0.000823]
[1726417463954,0.166051,60223.0,60219.0,0.16606]
[1726417464381,0.52419292,60225.0,60219.0,0.16606]
[1726417464797,0.19210192,60225.0,60220.0,0.166056]
[1726417465010,0.498119,60227.0,60222.0,0.166052]
[1726417465222,0.1,60232.0,60222.0,0.166052]
[1726417465223,0.1,60229.0,60223.0,0.332098]
[1726417465438,0.166033,60229.0,60226.0,0.19093661]
[1726417465645,0.166031,60230.0,60226.0,0.19093661]
[1726417465912,0.166031,60230.0,60226.0,0.35697661]
[1726417466119,0.1,60232.0,60226.0,0.19093661]
[1726417466339,0.1,60232.0,60228.0,0.166035]
[1726417466573,0.332025,60237.0,60226.0,0.19093661]
[1726417466787,0.522602,60241.0,60227.0,0.166037]
[1726417466788,0.166027,60231.0,60227.0,0.166037]
[1726417467234,0.1,60239.0,60230.0,0.19093661]
[1726417467441,0.1906,60241.0,60230.0,0.35696561]
[1726417467653,0.166011,60237.0,60232.0,0.166023]
[1726417467874,0.332008,60240.0,60232.0,0.166023]
[1726417468086,0.332006,60240.0,60220.0,0.20099]
[1726417468303,0.166022,60233.0,60222.0,0.19093661]
[1726417468515,0.166022,60233.0,60229.0,0.166032]
[1726417468721,0.00883975,60232.0,60230.0,0.166028]
[1726417468929,0.166019,60234.0,60228.0,0.166033]
[1726417469157,0.1,60237.0,60226.0,0.166039]
[1726417469158,0.00884627,60233.0,60226.0,0.166039]
[1726417469365,0.00884627,60233.0,60225.0,0.332086]
[1726417469582,0.00884627,60233.0,60229.0,0.166031]
[1726417469789,0.166019,60234.0,60229.0,0.166031]
[1726417470005,0.332055,60231.0,60221.0,0.332106]
[1726417470209,0.16604,60227.0,60222.0,0.166051]
[1726417470430,0.166034,60229.0,60223.0,0.166047]
[1726417470647,0.00876914,60226.0,60223.0,0.166047]
[1726417470862,0.332032,60236.0,60222.0,0.19093661]
[1726417471079,0.00877067,60225.0,60224.0,0.332093]
[1726417471289,0.02605473,60234.0,60224.0,0.332093]
[1726417471290,0.35809473,60234.0,60224.0,0.332093]
[1726417471502,0.166028,60231.0,60226.0,0.166038]
[1726417471707,0.16603,60230.0,60223.0,0.332098]
[1726417471913,0.0087772,60230.0,60226.0,0.166039]
[1726417472128,0.166026,60232.0,60227.0,0.166038]
[1726417472563,0.17480649,60231.0,60227.0,0.166038]
[1726417472786,0.00877949,60231.0,60227.0,0.166038]
[1726417472992,0.01042549,60231.0,60227.0,0.166038]
[1726417473200,0.001646,60231.0,60227.0,0.166038]
[1726417473436,0.00805279,60230.0,60227.0,0.166038]
[1726417473652,0.00805279,60230.0,60229.0,0.498097]
[1726417473856,0.00805279,60230.0,60227.0,0.19093661]
[1726417474066,0.001646,60231.0,60228.0,0.166035]
[1726417474339,0.001646,60231.0,60229.0,0.166032]
[1726417474554,0.00804738,60230.0,60229.0,0.166032]
[1726417475621,0.00804738,60230.0,60220.0,0.03329]
[1726417475842,0.166042,60226.0,60220.0,0.365404]
[1726417476114,0.166043,60226.0,60220.0,0.53146]
[1726417476335,0.00808301,60225.0,60220.0,0.03329]
[1726417476557,0.166042,60226.0,60222.0,0.166051]
[1726417476769,0.00808301,60224.0,60223.0,0.166049]
[1726417476974,0.166037,60228.0,60223.0,0.166049]
[1726417477398,0.00808301,60227.0,60223.0,0.166049]
[1726417477971,0.00808301,60227.0,60224.0,0.166045]
[1726417478190,0.00808301,60227.0,60226.0,0.166041]
[1726417478573,0.001646,60231.0,60227.0,0.166037]
[1726417479089,0.00806469,60230.0,60227.0,0.166037]
[1726417479289,0.00806469,60230.0,60222.0,0.332103]
[1726417479504,0.332076,60228.0,60222.0,0.16605]
[1726417479750,0.17412301,60227.0,60222.0,0.16605]
[1726417480163,0.17412301,60227.0,60220.0,0.166057]
[1726417480808,0.17412301,60227.0,60221.0,0.166054]
[1726417481238,0.166041,60226.0,60221.0,0.166054]
[1726417481640,0.166036,60228.0,60221.0,0.166054]
[1726417481855,0.00807582,60225.0,60221.0,0.166054]
[1726417482109,0.166038,60227.0,60221.0,0.166054]
[1726417482505,0.00807582,60226.0,60221.0,0.166054]
[1726417482936,0.00807582,60226.0,60222.0,0.166051]
[1726417483148,0.332072,60228.0,60220.0,0.332114]
[1726417483348,0.332072,60228.0,60219.0,0.19093661]
[1726417483349,0.00807582,60225.0,60219.0,0.19093661]
[1726417483791,0.00807582,60225.0,60220.0,0.166057]
[1726417484168,0.17411982,60225.0,60220.0,0.166057]
[1726417484369,0.00807582,60225.0,60219.0,0.22422661]
[1726417484578,0.00807582,60225.0,60221.0,0.166053]
[1726417484785,0.166042,60226.0,60221.0,0.166876]
[1726417484991,0.00806862,60224.0,60221.0,0.166876]
[1726417485147,0.332072,60228.0,60221.0,0.166876]
[1726417485148,0.0080503,60225.0,60223.0,0.35698461]
[1726417485353,0.166039,60227.0,60223.0,0.35698461]
[1726417485553,0.0080503,60224.0,60223.0,0.19093661]
[1726417485767,0.166041,60226.0,60223.0,0.19093661]
[1726417485972,0.00806335,60224.0,60222.0,0.16605]
[1726417486190,0.166045,60225.0,60221.0,0.000823]
[1726417486408,0.166049,60223.0,60221.0,0.000823]
[1726417486850,0.001646,60229.0,60221.0,0.332931]
[1726417487055,0.00806142,60222.0,60221.0,0.166878]
[1726417487265,0.001646,60229.0,60221.0,0.000823]
[1726417487266,0.166042,60226.0,60221.0,0.000823]
[1726417487458,0.166042,60226.0,60221.0,0.166876]
[1726417487660,0.00806142,60225.0,60221.0,0.166876]
[1726417488264,0.00806142,60225.0,60222.0,0.166052]
[1726417488724,0.166038,60227.0,60222.0,0.166052]
[1726417489152,0.00806862,60226.0,60222.0,0.166052]
[1726417489630,0.00806862,60226.0,60221.0,0.000823]
[1726417489631,0.00806862,60226.0,60225.0,0.166044]
[1726417490015,0.001646,60229.0,60225.0,0.166044]
[1726417490221,0.00806335,60226.0,60225.0,0.166044]
[1726417490430,0.001646,60229.0,60225.0,0.166044]
[1726417490654,0.00806335,60226.0,60225.0,0.166044]
[1726417490848,0.16768,60229.0,60225.0,0.166044]
[1726417491061,0.00806335,60226.0,60225.0,0.166044]
[1726417491305,0.001646,60229.0,60225.0,0.166044]
[1726417491493,0.00806335,60226.0,60225.0,0.166044]
[1726417491698,0.001646,60229.0,60225.0,0.166044]
[1726417491933,0.00804895,60226.0,60225.0,0.166044]
[1726417492118,0.001646,60229.0,60225.0,0.166044]
[1726417492250,0.00804895,60226.0,60225.0,0.166044]
[1726417492471,0.167679,60229.0,60225.0,0.166044]
[1726417492673,0.00804895,60226.0,60225.0,0.166044]
[1726417492875,0.167679,60229.0,60225.0,0.166044]
[1726417493181,0.001646,60229.0,60223.0,0.1677]
[1726417493423,0.001646,60229.0,60228.0,0.166035]
[1726417494647,0.001646,60229.0,60225.0,0.166042]
[1726417495276,0.001646,60229.0,60226.0,0.16604]
[1726417495685,0.167679,60229.0,60224.0,0.166045]
[1726417496594,0.166036,60228.0,60224.0,0.166045]
[1726417496766,0.001646,60229.0,60224.0,0.166045]
[1726417497599,0.001646,60229.0,60225.0,0.166043]
[1726417498228,0.166039,60227.0,60221.0,0.000823]
[1726417498451,0.166039,60227.0,60223.0,0.166048]
[1726417498860,0.499749,60229.0,60223.0,0.166047]
[1726417499061,0.166037,60228.0,60223.0,0.166047]
[1726417499299,0.001646,60229.0,60224.0,0.166046]
[1726417499500,0.167679,60229.0,60224.0,0.166046]
[1726417499715,0.001646,60229.0,60222.0,0.332103]
[1726417499914,0.16768,60229.0,60222.0,0.332103]
[1726417500150,0.16768,60229.0,60224.0,0.166045]
[1726417501415,0.166036,60228.0,60224.0,0.166045]
[1726417501607,0.166036,60228.0,60222.0,0.332103]
[1726417501814,0.166036,60228.0,60223.0,0.166049]
[1726417501988,0.166036,60228.0,60222.0,0.332103]
[1726417501989,0.166041,60226.0,60221.0,0.000823]
[1726417502188,0.166052,60222.0,60221.0,0.000823]
[1726417502611,0.166049,60223.0,60221.0,0.000823]
[1726417504061,0.166045,60225.0,60221.0,0.166877]
[1726417504497,0.166047,60224.0,60221.0,0.000823]
[1726417506046,0.332086,60226.0,60221.0,0.166876]
[1726417506047,0.166043,60226.0,60221.0,0.166876]
[1726417506265,0.166039,60227.0,60223.0,0.166048]
[1726417506512,0.40810932,60229.0,60221.0,0.000823]
[1726417506513,0.001646,60229.0,60224.0,0.19093661]
[1726417506723,0.167679,60229.0,60224.0,0.19093661]
[1726417507356,0.166043,60226.0,60221.0,0.000823]
[1726417507578,0.166044,60225.0,60221.0,0.000823]
[1726417508023,0.332071,60228.0,60221.0,0.166876]
[1726417508241,0.166043,60226.0,60221.0,0.166876]
[1726417508452,0.332071,60228.0,60221.0,0.166876]
[1726417508453,0.166044,60225.0,60221.0,0.166876]
[1726417508900,0.166044,60225.0,60221.0,0.000823]
[1726417509120,0.166045,60225.0,60221.0,0.000823]
[1726417509954,0.04959621,60227.0,60221.0,0.000823]
[1726417510162,0.04961513,60226.0,60221.0,0.000823]
[1726417510413,0.166051,60223.0,60221.0,0.000823]
[1726417510625,0.166047,60224.0,60221.0,0.000823]
[1726417511049,0.332089,60225.0,60221.0,0.000823]
[1726417511278,0.166051,60223.0,60221.0,0.000823]
[1726417512153,0.166047,60224.0,60221.0,0.000823]
[1726417512390,0.16605,60223.0,60221.0,0.000823]
[1726417513767,0.38170413,60225.0,60221.0,0.000823]
[1726417513768,0.21565913,60225.0,60221.0,0.000823]
[1726417514003,0.04961513,60228.0,60227.0,0.166038]
[1726417514222,0.04961513,60228.0,60224.0,0.19093661]
[1726417514223,0.001646,60229.0,60228.0,0.166035]
[1726417514445,0.001646,60229.0,60228.0,0.35697161]
[1726417514661,0.001646,60229.0,60228.0,0.68904261]
[1726417515565,0.00945717,60229.0,60228.0,0.68904261]
[1726417515793,0.001646,60229.0,60228.0,0.68904261]
[1726417516019,0.00945717,60229.0,60224.0,0.35698161]
[1726417516252,0.001646,60229.0,60224.0,0.19093661]
[1726417516499,0.001646,60229.0,60227.0,0.166038]
[1726417516500,0.00783604,60228.0,60227.0,0.166038]
[1726417516960,0.00783604,60228.0,60227.0,0.498114]
[1726417517178,0.00783604,60228.0,60227.0,0.166038]
[1726417519375,0.00783604,60228.0,60225.0,0.166043]
[1726417519595,0.00783604,60228.0,60226.0,0.16604]
[1726417519827,0.00783604,60228.0,60227.0,0.166038]
[1726417520045,0.00783604,60228.0,60221.0,0.000823]
[1726417520269,0.17387204,60228.0,60223.0,0.166048]
[1726417520517,0.166042,60226.0,60221.0,0.000823]
[1726417520770,0.05747207,60228.0,60221.0,0.000823]
[1726417520987,0.17386926,60225.0,60221.0,0.000823]
[1726417521199,0.166045,60225.0,60221.0,0.000823]
[1726417521407,0.00781774,60224.0,60221.0,0.000823]
[1726417522272,0.00781774,60224.0,60221.0,0.166877]
[1726417524504,0.02605591,60224.0,60221.0,0.166877]
[1726417524714,0.00776477,60223.0,60221.0,0.000823]
[1726417524923,0.00776477,60223.0,60221.0,0.166876]
[1726417525335,0.21567803,60226.0,60221.0,0.166876]
[1726417525567,0.00775825,60222.0,60221.0,0.166876]
[1726417525778,0.21567803,60226.0,60221.0,0.166876]
[1726417525996,0.00775825,60222.0,60221.0,0.166876]
[1726417526209,0.17382181,60225.0,60221.0,0.166876]
[1726417526445,0.00775825,60222.0,60221.0,0.166876]
[1726417526669,0.166044,60225.0,60221.0,0.166876]
[1726417526875,0.00775825,60222.0,60221.0,0.166876]
[1726417527135,0.166044,60225.0,60221.0,0.000823]
[1726417527383,0.00775825,60222.0,60221.0,0.000823]
[1726417527615,0.166044,60225.0,60221.0,0.000823]
[1726417527842,0.00775786,60222.0,60221.0,0.000823]
[1726417528269,0.166044,60225.0,60221.0,0.000823]
[1726417528481,0.00775786,60222.0,60221.0,0.000823]
[1726417528700,0.166044,60225.0,60221.0,0.000823]
[1726417528948,0.00775786,60222.0,60221.0,0.000823]
[1726417529165,0.166047,60224.0,60221.0,0.000823]
[1726417529413,0.00775786,60222.0,60221.0,0.000823]
[1726417529644,0.00776438,60223.0,60221.0,0.000823]
[1726417529878,0.00775786,60222.0,60221.0,0.000823]
[1726417530337,0.166047,60224.0,60221.0,0.000823]
[1726417530561,0.04962401,60226.0,60221.0,0.000823]
[1726417530562,0.50591386,60222.0,60221.0,0.000823]
[1726417530784,0.54778001,60222.0,60221.0,0.000823]
[1726417530992,0.58034418,60222.0,60221.0,0.000823]
[1726417531625,0.50590816,60222.0,60221.0,0.000823]
[1726417532073,0.58032109,60222.0,60221.0,0.000823]
[1726417532513,0.50590816,60222.0,60221.0,0.000823]
[1726417532715,0.58032109,60222.0,60221.0,0.000823]
[1726417533187,0.50590816,60222.0,60221.0,0.000823]
[1726417533399,0.58032109,60222.0,60221.0,0.000823]
[1726417533617,0.50590816,60222.0,60221.0,0.000823]
[1726417534064,0.91242509,60222.0,60221.0,0.000823]
[1726417534262,0.91239262,60222.0,60221.0,0.000823]
[1726417534982,0.83801216,60222.0,60221.0,0.000823]
[1726417535194,0.88759406,60222.0,60221.0,0.000823]
[1726417536304,0.83801216,60222.0,60221.0,0.000823]
[1726417536522,0.88759406,60222.0,60221.0,0.000823]
[1726417537428,0.8875554,60222.0,60221.0,0.000823]
[1726417537643,0.83801216,60222.0,60221.0,0.000823]
[1726417538056,0.8875554,60222.0,60221.0,0.000823]